bitfinex-derivatives/quotes_SOLF0:USTF0_20241217
["timestamp","ask_amount","ask_price","bid_price","bid_amount"]
[1734423976459,11.22127683,216.99,216.94,4.4646]
[1734423976460,2.3042,216.98,216.94,4.4646]
[1734423976863,11.22127683,216.99,216.94,2.16]
[1734423977262,11.22127683,216.99,216.86,11.22127683]
[1734423977263,11.22127683,216.99,216.91,2.16]
[1734423977662,11.22127683,216.99,216.92,5.0136003]
[1734423977857,11.22127683,216.99,216.93,5.0136003]
[1734423978066,11.22127683,216.96,216.9,2.16]
[1734423978366,11.22127683,216.96,216.88,2.16]
[1734423978557,2.3047,216.94,216.9,2.305]
[1734423978757,2.3047,216.94,216.91,5.01548274]
[1734423979071,2.3047,216.94,216.9,2.305]
[1734423979260,11.22127683,216.96,216.91,5.01546032]
[1734423979465,11.22127683,216.93,216.86,4.4654]
[1734423979764,11.22127683,216.93,216.87,5.01781201]
[1734423979965,2.305,216.91,216.86,2.3054]
[1734423980158,2.305,216.91,216.87,5.01795568]
[1734423980362,11.22127683,216.93,216.86,2.3054]
[1734423980363,2.3051,216.9,216.86,2.3054]
[1734423980564,2.3051,216.9,216.87,5.01783271]
[1734423980864,2.3051,216.9,216.86,2.3054]
[1734423981065,2.3051,216.9,216.87,5.01763451]
[1734423981260,2.3051,216.9,216.86,2.3054]
[1734423983162,2.3052,216.89,216.85,2.3056]
[1734423983362,11.22127683,216.9,216.83,2.16]
[1734423983564,11.22127683,216.9,216.84,5.01656785]
[1734423983769,11.22127683,216.9,216.85,5.01656785]
[1734423984074,2.3055,216.87,216.83,2.16]
[1734423984370,2.3055,216.87,216.84,5.01693709]
[1734423984569,2.3055,216.87,216.83,2.16]
[1734423984962,2.3055,216.87,216.84,5.01600041]
[1734423985161,2.3055,216.87,216.82,2.3058]
[1734423985369,2.3055,216.87,216.82,4.4658]
[1734423985566,2.3055,216.87,216.83,5.01551585]
[1734423985768,2.3055,216.87,216.84,5.01551585]
[1734423985971,2.3055,216.87,216.82,4.4658]
[1734423986168,2.3055,216.87,216.83,5.01469406]
[1734423986365,2.3055,216.87,216.84,5.01469406]
[1734423986570,2.3055,216.87,216.82,4.4658]
[1734423986571,2.3053,216.88,216.83,2.3058]
[1734423986772,2.3053,216.88,216.84,5.01515196]
[1734423987078,2.3053,216.88,216.83,2.3058]
[1734423987570,2.3053,216.88,216.84,5.0141823]
[1734423987766,2.3053,216.88,216.83,2.3058]
[1734423987973,9.49389825,216.88,216.84,5.01487591]
[1734423988186,9.49389825,216.88,216.83,4.4658]
[1734423988371,7.18859825,216.86,216.84,5.01420896]
[1734423988574,7.18859825,216.86,216.83,2.16]
[1734423988777,7.18859825,216.86,216.84,5.01534367]
[1734423989076,7.18859825,216.86,216.83,2.16]
[1734423989275,7.18859825,216.86,216.84,5.01583849]
[1734423989476,7.18859825,216.86,216.83,2.16]
[1734423989680,7.18859825,216.86,216.84,5.01691101]
[1734423989874,7.66456684,216.93,216.83,2.16]
[1734423989875,7.18859825,216.89,216.85,2.3056]
[1734423990881,2.305,216.9,216.85,2.3056]
[1734423991177,7.66456684,216.93,216.85,2.3056]
[1734423991178,7.18859825,216.92,216.86,5.0182648]
[1734423991378,7.18859825,216.92,216.87,5.0182648]
[1734423991678,7.18859825,216.92,216.88,2.16]
[1734423992079,4.6254,216.97,216.88,2.16]
[1734423992277,7.18859825,216.95,216.89,12.20536405]
[1734423992475,10.27859825,216.97,216.91,7.18859825]
[1734423992679,10.27859825,216.97,216.92,5.0167658]
[1734423992879,10.27859825,216.97,216.93,5.0167658]
[1734423993177,10.27859825,216.97,216.94,5.01563558]
[1734423993379,10.27859825,216.97,216.93,2.3046]
[1734423993579,10.27859825,216.97,216.94,5.01554273]
[1734423993780,10.27859825,216.97,216.93,2.3046]
[1734423993978,10.27859825,216.97,216.94,5.01554196]
[1734423994174,10.27859825,216.97,216.93,2.3046]
[1734423994380,10.27859825,216.97,216.94,5.01538327]
[1734423994577,10.27859825,216.97,216.95,5.01538327]
[1734423994779,10.27859825,216.97,216.93,4.4446]
[1734423995174,10.27859825,216.97,216.94,5.01469242]
[1734423995682,10.27859825,216.97,216.95,5.01469242]
[1734423995979,7.18859825,216.97,216.94,2.3046]
[1734423996175,7.18859825,216.97,216.95,5.01442948]
[1734423996376,7.18859825,216.97,216.94,2.3046]
[1734423996574,7.18859825,216.97,216.95,5.01450109]
[1734423996776,7.18859825,216.97,216.94,2.3046]
[1734423996979,7.18859825,216.97,216.95,5.01432835]
[1734423997184,7.18859825,216.97,216.94,2.3046]
[1734423997585,7.18859825,216.97,216.95,5.01411519]
[1734423997884,7.18859825,216.97,216.94,2.3046]
[1734423998282,2.3042,216.98,216.95,5.01406461]
[1734423998482,2.3042,216.98,216.93,4.4447]
[1734423998786,7.18859825,216.96,216.94,5.01380898]
[1734423998986,7.18859825,216.98,216.93,2.14]
[1734423999186,3.1047,217.02,216.94,13.03387783]
[1734423999377,7.18859825,216.99,216.95,5.0136712]
[1734423999582,7.18859825,216.99,216.96,5.0136712]
[1734423999784,7.18859825,216.99,216.93,2.14]
[1734423999982,7.18859825,216.99,216.94,13.03270688]
[1734424000183,7.18859825,216.99,216.95,13.03165579]
[1734424000381,7.18859825,216.99,216.98,2.3042]
[1734424000581,7.18859825,216.99,216.98,7.31478951]
[1734424000886,7.18859825,216.99,216.98,2.3042]
[1734424003490,5.5579122,217.06,216.98,2.14]
[1734424003687,2.3035,217.05,217.01,2.3038]
[1734424003886,7.18859825,217.03,217.01,2.3038]
[1734424005583,7.18859825,217.03,217.02,2.3038]
[1734424006087,4.6527,217.13,217.01,7.18859825]
[1734424006289,7.18859825,217.09,217.03,7.18859825]
[1734424006483,7.18859825,217.09,217.04,7.14145993]
[1734424006683,7.18859825,217.09,217.04,2.14]
[1734424007584,7.18859825,217.09,217.06,2.3033]
[1734424007885,7.18859825,217.09,217.04,2.14]
[1734424008191,7.18859825,217.09,217.05,2.3034]
[1734424008487,7.18859825,217.09,217.04,2.14]
[1734424009487,7.18859825,217.09,217.05,2.3034]
[1734424012782,7.18859825,217.07,217.04,2.14]
[1734424014589,7.18859825,217.07,217.03,2.3036]
[1734424014794,9.49189825,217.07,217.03,2.14]
[1734424014988,7.18859825,217.05,216.99,7.18859825]
[1734424015188,7.18859825,217.03,217.0,2.14]
[1734424015493,7.18859825,217.03,216.99,2.14]
[1734424016292,7.18859825,217.03,216.96,7.18859825]
[1734424016491,7.18859825,217.03,216.99,2.304]
[1734424017386,9.49229825,217.03,216.98,4.4442]
[1734424017591,7.18859825,217.01,216.98,2.14]
[1734424018196,9.49259825,217.01,216.98,2.14]
[1734424020597,7.18859825,216.99,216.93,7.18859825]
[1734424020801,7.18859825,216.99,216.93,9.32859825]
[1734424021594,9.49279825,216.99,216.94,2.3045]
[1734424022197,2.3042,216.98,216.93,9.32859825]
[1734424022498,7.18859825,216.95,216.88,7.18859825]
[1734424022693,7.18859825,216.95,216.89,4.98777871]
[1734424022893,7.18859825,216.95,216.89,2.14]
[1734424023197,2.3046,216.94,216.89,2.14]
[1734424023593,2.3046,216.94,216.89,4.4451]
[1734424025391,7.18859825,216.93,216.89,4.4451]
[1734424025700,9.49329825,216.93,216.89,4.4451]
[1734424025896,7.18859825,216.93,216.89,4.4451]
[1734424027094,2.3044,216.96,216.91,2.3049]
[1734424028294,7.18859825,216.95,216.89,2.14]
[1734424028491,9.49329825,216.93,216.89,2.14]
[1734424028899,7.18859825,216.93,216.67,75.68371362]
[1734424029100,2.305,216.91,216.86,9.49399825]
[1734424029291,2.305,216.91,216.87,7.13262775]
[1734424029494,2.305,216.91,216.87,2.14]
[1734424029690,2.305,216.91,216.87,4.4454]
[1734424030095,7.18859825,216.93,216.87,4.4454]
[1734424030898,7.18859825,216.89,216.78,4.8101]
[1734424031095,7.18859825,216.87,216.81,7.18859825]
[1734424031299,7.18859825,216.87,216.82,4.99719674]
[1734424031798,7.18859825,216.89,216.83,4.99719674]
[1734424032000,2.3053,216.88,216.84,2.3057]
[1734424032703,2.3053,216.88,216.83,2.3058]
[1734424032899,2.3053,216.88,216.84,4.99715487]
[1734424033202,2.3053,216.88,216.83,2.3058]
[1734424033797,2.3053,216.88,216.84,4.9976937]
[1734424033998,2.3053,216.88,216.83,2.3058]
[1734424034195,9.49379825,216.89,216.84,7.30257108]
[1734424034395,9.49379825,216.89,216.84,2.3057]
[1734424034803,2.14,216.94,216.85,7.18859825]
[1734424035096,7.18859825,216.94,216.87,7.18859825]
[1734424035698,7.18859825,216.94,216.88,4.99577567]
[1734424035894,7.18859825,216.94,216.9,2.305]
[1734424036298,2.3046,216.95,216.9,2.305]
[1734424036498,2.3046,216.95,216.91,2.3049]
[1734424037397,4.6848,216.98,216.92,2.3048]
[1734424037598,10.24969825,216.98,216.91,7.18859825]
[1734424037795,10.24969825,216.98,216.92,4.99364993]
[1734424037998,10.24969825,216.98,216.94,2.3045]
[1734424037999,12.55389825,216.98,216.94,2.3045]
[1734424038304,7.18859825,216.99,216.91,7.18859825]
[1734424038500,7.18859825,216.99,216.92,4.99189308]
[1734424038803,2.14,217.02,216.93,12.18049133]
[1734424039000,7.18859825,217.01,216.94,7.13189308]
[1734424039303,7.18859825,216.99,216.95,4.99189308]
[1734424039498,7.18859825,216.97,216.94,2.14]
[1734424039704,7.18859825,216.97,216.95,4.99227633]
[1734424039898,7.18859825,216.97,216.94,2.14]
[1734424040094,7.18859825,216.97,216.95,4.99296279]
[1734424040295,7.18859825,216.97,216.94,2.14]
[1734424040496,7.18859825,216.97,216.93,2.3046]
[1734424040696,7.18859825,216.97,216.94,4.9938965]
[1734424040901,7.18859825,216.97,216.93,2.3046]
[1734424041395,7.18859825,216.97,216.94,4.99426161]
[1734424041594,7.18859825,216.97,216.93,2.3046]
[1734424041798,9.49309825,216.95,216.94,4.99431865]
[1734424042001,7.18859825,216.95,216.91,2.14]
[1734424042198,7.18859825,216.93,216.88,2.14]
[1734424042399,7.18859825,216.93,216.89,7.30128784]
[1734424042604,7.18859825,216.93,216.9,4.99628784]
[1734424042806,7.18859825,216.93,216.91,4.99591007]
[1734424043104,9.49319825,216.95,216.9,2.305]
[1734424044302,2.3046,216.94,216.89,2.3051]
[1734424044505,2.3046,216.94,216.9,4.9957568]
[1734424044699,2.3046,216.94,216.88,2.14]
[1734424044901,2.3046,216.94,216.89,4.99594327]
[1734424045096,2.3046,216.94,216.88,2.14]
[1734424045097,2.3046,216.94,216.9,4.99594327]
[1734424045305,2.3046,216.94,216.88,2.14]
[1734424045508,2.3046,216.94,216.9,2.305]
[1734424045810,9.49319825,216.94,216.9,2.305]
[1734424046103,9.49319825,216.94,216.88,2.14]
[1734424046307,9.49319825,216.94,216.77,44.73688131]
[1734424046308,2.3049,216.91,216.89,4.99581675]
[1734424046509,2.3049,216.91,216.86,2.14]
[1734424046698,2.3049,216.91,216.87,4.99673312]
[1734424047097,2.3049,216.91,216.88,4.99673312]
[1734424047405,2.3049,216.91,216.87,2.3053]
[1734424047602,9.49349825,216.92,216.88,4.9956694]
[1734424047901,9.49349825,216.92,216.87,2.3053]
[1734424048107,9.49349825,216.92,216.88,4.99562257]
[1734424048302,9.49349825,216.92,216.87,2.3053]
[1734424048508,9.49349825,216.92,216.88,4.99511478]
[1734424048708,9.49349825,216.92,216.88,2.3052]
[1734424048905,2.14,216.96,216.86,9.32859825]
[1734424049107,7.18859825,216.94,216.88,7.18859825]
[1734424049309,9.49309825,216.95,216.9,2.305]
[1734424050112,7.18859825,216.93,216.9,2.305]
[1734424052512,2.3045,216.95,216.9,2.305]
[1734424052709,2.3044,216.96,216.92,2.3048]
[1734424052905,3.2471,216.98,216.92,2.3048]
[1734424052906,7.18859825,216.95,216.92,2.3048]
[1734424053404,3.2471,216.98,216.92,2.3048]
[1734424053609,7.18859825,216.95,216.92,2.3048]
[1734424054909,7.18859825,216.95,216.91,2.3049]
[1734424056517,2.3046,216.95,216.91,2.3049]
[1734424056713,25.19406358,217.1,216.94,2.3045]
[1734424056915,7.18859825,217.06,216.98,7.18859825]
[1734424057114,2.3034,217.06,216.99,2.14]
[1734424057316,11.93479825,217.07,217.0,7.18859825]
[1734424057613,10.40379825,217.07,217.01,4.9975617]
[1734424057920,10.40379825,217.07,217.02,4.9975617]
[1734424058120,7.18859825,217.05,217.03,4.9975617]
[1734424058419,7.18859825,217.05,217.0,7.18859825]
[1734424058616,7.18859825,217.05,217.01,12.99391624]
[1734424058821,7.18859825,217.05,217.02,4.99766009]
[1734424059119,7.18859825,217.06,217.03,4.99766009]
[1734424059320,7.18859825,217.06,217.01,2.3039]
[1734424059514,7.18859825,217.06,217.02,7.30197595]
[1734424059712,7.18859825,217.06,217.02,2.3037]
[1734424059918,2.3033,217.07,217.03,4.99844598]
[1734424060116,2.3033,217.07,217.02,2.3037]
[1734424060719,2.3033,217.07,216.99,2.14]
[1734424060913,2.3034,217.06,217.01,2.3039]
[1734424061117,2.3034,217.06,217.02,4.9982462]
[1734424061320,2.3034,217.06,217.01,2.3039]
[1734424061525,2.3034,217.06,217.02,4.99732455]
[1734424061820,2.3034,217.06,217.01,2.3039]
[1734424063319,11.21269794,217.07,216.96,11.21269794]
[1734424063520,11.21269794,217.07,216.97,2.14]
[1734424063521,2.3035,217.05,216.97,2.14]
[1734424063724,2.3035,217.05,216.88,5.57170137]
[1734424063725,11.21269794,217.04,216.98,12.99306611]
[1734424064023,2.3041,217.0,216.95,2.14]
[1734424064221,2.3041,217.0,216.94,2.3045]
[1734424064424,2.3041,217.0,216.95,7.99994819]
[1734424064622,2.3041,217.0,216.96,5.00000268]
[1734424064821,13.51659794,217.01,216.97,5.00000268]
[1734424065026,11.21269794,217.01,216.96,2.3044]
[1734424065229,11.21269794,217.01,216.97,4.9999758]
[1734424065422,11.21269794,217.01,216.96,2.3044]
[1734424065622,11.21269794,217.01,216.97,4.99999158]
[1734424065822,11.21269794,217.01,216.96,2.3044]
[1734424066023,11.21269794,217.01,216.97,4.99998059]
[1734424066227,11.21269794,217.01,216.96,2.3044]
[1734424066427,2.304,217.0,216.96,2.3044]
[1734424068529,11.21269794,217.01,216.94,2.14]
[1734424068731,6.9292,217.03,216.88,5.57170137]
[1734424068732,11.21269794,216.98,216.88,5.57170137]
[1734424068926,2.3046,216.95,216.91,2.14]
[1734424069132,11.21269794,216.98,216.92,5.00129594]
[1734424069328,11.21269794,216.98,216.93,5.00129594]
[1734424069530,11.21269794,216.98,216.91,2.14]
[1734424069726,11.21269794,216.98,216.92,5.00233491]
[1734424069930,11.21269794,216.98,216.93,5.00233491]
[1734424070122,11.21269794,216.98,216.91,2.14]
[1734424070428,11.21269794,216.98,216.92,5.00244856]
[1734424070627,11.21269794,216.98,216.93,5.00244856]
[1734424070827,2.3044,216.96,216.91,4.4448]
[1734424071127,2.3044,216.96,216.92,5.00276355]
[1734424071331,11.21269794,216.98,216.93,5.00276355]
[1734424071633,2.3044,216.96,216.92,2.3048]
[1734424071827,2.3044,216.96,216.91,2.14]
[1734424071828,11.21269794,216.98,216.93,5.00298135]
[1734424072034,2.14,217.02,216.94,5.00298135]
[1734424072230,11.21269794,217.0,216.94,5.00298135]
[1734424072632,11.21269794,217.0,216.95,5.00298135]
[1734424072826,11.21269794,217.0,216.91,2.14]
[1734424073028,11.21269794,217.0,216.92,13.00353983]
[1734424073338,2.3041,216.99,216.96,2.3044]
[1734424073636,11.21269794,217.0,216.96,2.3044]
[1734424074534,13.51669794,217.0,216.96,2.3044]
[1734424074733,13.51669794,217.0,216.95,2.3045]
[1734424074935,13.51669794,217.0,216.96,5.00160549]
[1734424075135,13.51669794,217.0,216.95,2.3045]
[1734424075337,13.51669794,217.0,216.96,5.00160549]
[1734424075636,13.51669794,217.0,216.97,5.00158273]
[1734424075838,13.51669794,217.0,216.95,2.3045]
[1734424076239,13.51669794,217.0,216.96,5.00162495]
[1734424076535,2.3041,216.99,216.95,2.3045]
[1734424076736,2.3041,216.99,216.97,5.00291879]
[1734424077035,2.3041,216.99,216.95,2.3045]
[1734424077336,2.3041,216.99,216.96,5.00301385]
[1734424077538,2.3041,216.99,216.95,2.3045]
[1734424077736,2.3041,216.99,216.96,5.00516307]
[1734424077932,2.3041,216.99,216.97,5.00516307]
[1734424078137,2.3041,216.99,216.95,2.3045]
[1734424078338,2.3041,216.99,216.96,5.00523691]
[1734424078541,2.3041,216.99,216.97,5.00523691]
[1734424078729,2.3041,216.99,216.95,2.3045]
[1734424078934,2.3041,216.99,216.96,5.00614461]
[1734424079134,2.3041,216.99,216.94,2.3046]
[1734424079335,2.3041,216.99,216.95,5.0075834]
[1734424079640,2.3041,216.99,216.94,2.3046]
[1734424079841,2.3041,216.99,216.95,5.00790948]
[1734424080139,2.3041,216.99,216.94,2.3046]
[1734424080140,7.18278215,216.96,216.94,2.3046]
[1734424080330,7.18278215,216.96,216.95,5.00806084]
[1734424081543,7.18278215,216.96,216.94,2.3046]
[1734424082040,7.18278215,216.96,216.95,5.00709715]
[1734424082236,2.3041,216.99,216.95,5.00709715]
[1734424082439,7.18278215,216.96,216.94,2.3046]
[1734424082640,7.18278215,216.96,216.95,5.00842091]
[1734424083232,7.18278215,216.96,216.95,7.31292091]
[1734424083436,7.18278215,216.98,216.95,7.31292091]
[1734424083839,7.18278215,216.98,216.96,5.00842091]
[1734424084037,7.18278215,216.98,216.95,2.3045]
[1734424084339,7.18278215,216.98,216.96,5.00884296]
[1734424084540,7.18278215,216.98,216.95,2.3045]
[1734424084740,7.18278215,216.98,216.96,5.00890485]
[1734424084937,7.18278215,216.98,216.94,2.3046]
[1734424085143,7.18278215,216.98,216.95,5.0089916]
[1734424085339,7.18278215,216.98,216.96,5.0089916]
[1734424085643,7.18278215,216.98,216.94,2.3046]
[1734424085844,7.18278215,216.98,216.95,5.00920389]
[1734424086144,7.18278215,216.98,216.96,5.00920389]
[1734424086345,9.48698215,216.98,216.91,2.14]
[1734424086645,9.48698215,216.98,216.92,13.02477067]
[1734424086941,7.18278215,216.98,216.94,2.3045]
[1734424087342,7.18278215,216.98,216.95,5.00952718]
[1734424087542,2.304,217.01,216.96,5.00952718]
[1734424087744,7.18278215,217.0,216.97,5.00909945]
[1734424087940,7.18278215,217.0,216.95,2.14]
[1734424088141,7.18278215,217.0,216.97,2.3042]
[1734424088439,4.7892,217.03,216.95,2.14]
[1734424088637,7.18278215,217.01,216.96,13.02368973]
[1734424088837,7.18278215,217.01,216.99,2.304]
[1734424090446,7.18278215,217.01,216.95,2.14]
[1734424090740,7.18278215,216.98,216.96,13.02304489]
[1734424090943,2.3039,217.01,216.97,5.00886342]
[1734424091246,2.14,217.07,216.98,5.00886342]
[1734424091448,1.5352,217.09,216.99,15.16075846]
[1734424091637,7.18278215,217.05,217.0,5.00886342]
[1734424091836,7.18278215,217.05,217.01,5.00697297]
[1734424092239,2.3036,217.04,217.01,5.00697297]
[1734424092443,2.3036,217.04,216.99,2.14]
[1734424092644,7.18278215,217.05,216.99,2.14]
[1734424092840,9.48628215,217.05,217.0,2.3039]
[1734424093046,9.48628215,217.05,216.99,2.14]
[1734424093347,7.18278215,217.05,217.01,2.3038]
[1734424093552,7.18278215,217.05,217.02,5.0103774]
[1734424093743,7.18278215,217.05,217.01,2.3038]
[1734424094247,7.18278215,217.05,217.02,5.00975335]
[1734424094443,7.18278215,217.05,216.99,2.14]
[1734424094444,7.18278215,217.03,216.94,7.18278215]
[1734424094647,9.48678215,217.0,216.95,2.14]
[1734424094846,9.48678215,217.0,216.96,5.01172977]
[1734424095148,9.48678215,217.0,216.97,13.03049741]
[1734424095347,9.48678215,217.0,216.98,5.01172977]
[1734424095550,9.48678215,217.0,216.99,5.01172977]
[1734424096447,2.3042,216.99,216.94,4.4446]
[1734424096648,7.18278215,216.98,216.95,13.04081359]
[1734424096944,7.18278215,216.98,216.96,5.01569753]
[1734424097144,7.18278215,216.98,216.95,8.02511606]
[1734424097145,9.48698215,216.98,216.97,5.01569753]
[1734424097749,2.3043,216.97,216.94,2.3046]
[1734424098149,2.3043,216.97,216.95,13.04398146]
[1734424098453,2.3043,216.97,216.96,13.04398146]
[1734424099249,2.3043,216.97,216.96,5.01691596]
[1734424099452,2.3046,216.95,216.91,4.4449]
[1734424099660,7.18278215,216.94,216.92,13.0514221]
[1734424099857,7.18278215,216.94,216.93,13.0514221]
[1734424100256,9.48738215,216.94,216.93,13.0514221]
[1734424100562,9.48738215,216.94,216.93,5.01977773]
[1734424101551,9.48738215,216.94,216.88,2.14]
[1734424101758,9.48738215,216.94,216.9,2.305]
[1734424101958,9.48738215,216.94,216.91,13.05454691]
[1734424102158,9.48738215,216.94,216.92,5.02097957]
[1734424102357,9.48738215,216.94,216.9,2.305]
[1734424102563,9.48738215,216.94,216.91,5.02145962]
[1734424103064,9.48738215,216.94,216.91,7.32635962]
[1734424103264,9.48738215,216.94,216.92,5.02145962]
[1734424103558,7.18278215,216.94,216.88,9.32278215]
[1734424103760,9.48728215,216.96,216.92,2.3048]
[1734424104263,9.48728215,216.96,216.93,5.0222935]
[1734424104562,9.48728215,216.96,216.92,2.3048]
[1734424104762,9.48728215,216.96,216.93,5.02431589]
[1734424104961,9.48728215,216.96,216.92,2.3048]
[1734424105163,9.48728215,216.96,216.93,5.02409033]
[1734424105362,9.48728215,216.96,216.94,5.02409033]
[1734424105557,9.48728215,216.96,216.92,2.3048]
[1734424105758,9.48728215,216.96,216.93,5.02477113]
[1734424106161,9.48728215,216.96,216.94,5.02477113]
[1734424106458,9.48728215,216.96,216.92,2.3048]
[1734424106659,9.48728215,216.96,216.93,5.02566633]
[1734424106862,9.48728215,216.96,216.94,5.02566633]
[1734424107160,9.48728215,216.96,216.92,2.3048]
[1734424107361,2.3045,216.95,216.93,5.02673204]
[1734424107561,2.3045,216.95,216.91,4.4449]
[1734424107562,7.18278215,216.94,216.91,4.4449]
[1734424107761,7.18278215,216.94,216.91,2.3049]
[1734424107965,7.18278215,216.94,216.92,5.02788864]
[1734424108166,7.18278215,216.94,216.93,5.02788864]
[1734424108362,7.18278215,216.94,216.93,5.02789836]
[1734424109466,9.48738215,216.94,216.93,5.02789836]
[1734424110863,2.305,216.91,216.88,2.14]
[1734424111064,9.48778215,216.91,216.89,13.07054453]
[1734424111366,9.48778215,216.91,216.9,13.07054453]
[1734424112667,9.48778215,216.91,216.9,5.02713251]
[1734424113965,9.48778215,216.91,216.88,2.14]
[1734424114166,9.48778215,216.91,216.89,13.06187144]
[1734424114471,9.48778215,216.91,216.9,5.02374062]
[1734424117170,2.305,216.9,216.87,2.3053]
[1734424117363,7.18278215,216.91,216.88,13.05820127]
[1734424117670,7.18278215,216.91,216.86,2.14]
[1734424117671,2.305,216.9,216.89,5.02243054]
[1734424119177,3.1684,216.97,216.89,5.02243054]
[1734424119473,7.18278215,216.91,216.9,5.02243054]
[1734424119770,2.3052,216.89,216.86,4.4454]
[1734424119973,2.3052,216.89,216.87,13.05538749]
[1734424120171,2.3052,216.89,216.88,5.02130288]
[1734424120475,2.3052,216.89,216.88,5.02112118]
[1734424120866,2.3052,216.89,216.86,4.4454]
[1734424121071,2.3052,216.89,216.87,8.03282519]
[1734424121268,2.3052,216.89,216.88,5.02075679]
[1734424122368,9.48798215,216.89,216.88,5.02075679]
[1734424123468,2.3053,216.88,216.85,2.14]
[1734424123665,3.1684,216.97,216.9,2.305]
[1734424123978,3.1684,216.97,216.91,5.01737535]
[1734424123979,9.48728215,216.96,216.91,5.01737535]
[1734424124275,9.48728215,216.96,216.91,2.14]
[1734424124769,9.48728215,216.96,216.92,5.01794142]
[1734424124970,2.3045,216.95,216.91,4.4449]
[1734424125174,2.3045,216.95,216.92,5.01787101]
[1734424125375,2.3045,216.95,216.91,4.4449]
[1734424125577,2.3045,216.95,216.92,5.01759308]
[1734424125776,2.3045,216.95,216.91,4.4449]
[1734424125975,2.3045,216.95,216.92,5.01785157]
[1734424126173,2.3045,216.95,216.91,4.4449]
[1734424126373,2.3045,216.95,216.92,5.01772425]
[1734424126676,2.3045,216.95,216.91,4.4449]
[1734424126871,2.3045,216.95,216.92,5.01785741]
[1734424127078,2.3045,216.95,216.91,4.4449]
[1734424127379,2.3045,216.95,216.92,5.01778843]
[1734424127569,2.3045,216.95,216.93,5.01778843]
[1734424127772,2.3045,216.95,216.91,4.4449]
[1734424127973,2.3045,216.95,216.92,5.01749862]
[1734424128174,2.3045,216.95,216.93,5.01749862]
[1734424128372,2.3045,216.95,216.91,4.4449]
[1734424128573,2.3045,216.95,216.92,5.01763175]
[1734424129168,2.3045,216.95,216.93,5.01763175]
[1734424129370,2.3045,216.95,216.91,4.4449]
[1734424129576,2.3045,216.95,216.92,5.01853613]
[1734424129770,2.3045,216.95,216.93,5.01853613]
[1734424129976,2.3045,216.95,216.91,4.4449]
[1734424130277,2.3045,216.95,216.92,5.01858653]
[1734424130466,2.3045,216.95,216.93,5.01858653]
[1734424130673,2.3045,216.95,216.91,4.4449]
[1734424130973,3.1684,216.97,216.93,2.3047]
[1734424130974,2.3044,216.97,216.93,2.3047]
[1734424131169,1.5822,217.0,216.93,2.3047]
[1734424131367,7.18278215,216.97,216.93,2.3047]
[1734424133678,7.18278215,216.97,216.94,5.01772175]
[1734424133884,7.18278215,216.97,216.93,2.3047]
[1734424134074,7.18278215,216.97,216.94,5.01742053]
[1734424134271,7.18278215,216.97,216.93,2.3047]
[1734424134478,7.18278215,216.97,216.94,5.01750346]
[1734424134681,2.14,217.04,216.94,2.3046]
[1734424134682,9.48688215,216.99,216.94,2.3046]
[1734424135381,9.48688215,216.99,216.95,2.3045]
[1734424136380,9.48688215,216.99,216.95,4.4445]
[1734424136681,2.3042,216.98,216.95,4.4445]
[1734424137381,2.3041,216.99,216.95,4.4445]
[1734424137577,7.18278215,216.98,216.95,4.4445]
[1734424138879,9.48698215,216.98,216.95,4.4445]
[1734424140384,9.48698215,216.98,216.96,10.05235772]
[1734424140585,9.48698215,216.98,216.96,5.02611958]
[1734424142483,2.3043,216.97,216.96,5.02611958]
[1734424142680,2.3043,216.97,216.96,10.05581858]
[1734424143984,9.48708215,216.97,216.96,10.05581858]
[1734424144487,7.18278215,216.97,216.96,10.05581858]
[1734424145283,7.18278215,216.97,216.96,5.02611958]
[1734424145482,7.18278215,216.97,216.96,10.05733357]
[1734424148283,7.18278215,216.97,216.96,5.02611958]
[1734424148791,9.48708215,216.97,216.96,10.05716586]
[1734424149084,2.3043,216.97,216.96,10.05716586]
[1734424149290,7.18278215,216.98,216.96,5.03104628]
[1734424149488,7.18278215,216.98,216.95,2.3044]
[1734424149693,7.18278215,216.98,216.96,5.03096253]
[1734424149887,7.18278215,216.98,216.95,2.3044]
[1734424150188,1.6298,217.04,216.96,5.03062627]
[1734424150492,7.18278215,216.99,216.97,7.33368777]
[1734424150683,7.18278215,216.99,216.98,5.02948777]
[1734424151782,7.18278215,217.01,216.98,5.02948777]